[Event "*** Titled Tuesday Blitz"]
[Site "Chess.com"]
[Date "2018.04.03"]
[Round "6"]
[White "Hrant_ChessMood"]
[Black "Korchmar_Vasiliy"]
[Result "1-0"]
[WhiteElo "2924"]
[BlackElo "2652"]
[TimeControl "180+2"]
[EndTime "14:19:28 PDT"]
[Termination "Hrant_ChessMood won by resignation"]

1. d4 {[%clk 0:03:01.9]} 1... Nf6 {[%clk 0:03:00.7]} 2. Nf3 {[%clk 0:03:02.7]}
2... d5 {[%clk 0:03:01.6]} 3. c4 {[%clk 0:03:03]} 3... e6 {[%clk 0:03:02.8]} 4.
Nc3 {[%clk 0:03:02.6]} 4... Bb4 {[%clk 0:03:03.7]} 5. Qa4+ {[%clk 0:02:57.4]}
5... Nc6 {[%clk 0:03:04.3]} 6. e3 {[%clk 0:02:55.9]} 6... O-O {[%clk 0:03:05]}
7. Qc2 {[%clk 0:02:57]} 7... dxc4 {[%clk 0:03:04.3]} 8. Bxc4 {[%clk 0:02:57.3]}
8... Bd6 {[%clk 0:03:05]} 9. Bd2 {[%clk 0:02:56.1]} 9... e5 {[%clk 0:03:05.5]}
10. dxe5 {[%clk 0:02:56.4]} 10... Nxe5 {[%clk 0:03:05.9]} 11. Nxe5 {[%clk
0:02:57.9]} 11... Bxe5 {[%clk 0:03:07.8]} 12. O-O-O {[%clk 0:02:59.7]} 12... Qe7
{[%clk 0:02:57.5]} 13. Kb1 {[%clk 0:02:51.6]} 13... c6 {[%clk 0:02:51.8]} 14. h3
{[%clk 0:02:44.4]} 14... Be6 {[%clk 0:02:44.1]} 15. Bd3 {[%clk 0:02:41.2]} 15...
Nd5 {[%clk 0:02:24.5]} 16. Nxd5 {[%clk 0:02:33.9]} 16... cxd5 {[%clk 0:02:25.3]}
17. Bxh7+ {[%clk 0:02:34.5]} 17... Kh8 {[%clk 0:02:26.6]} 18. Bd3 {[%clk
0:02:33.7]} 18... Rfc8 {[%clk 0:02:23]} 19. Qa4 {[%clk 0:02:34.4]} 19... b5
{[%clk 0:02:10.9]} 20. Qb4 {[%clk 0:02:35.3]} 20... Qd8 {[%clk 0:01:51.3]} 21.
Rc1 {[%clk 0:01:54.4]} 21... Rxc1+ {[%clk 0:01:43.3]} 22. Rxc1 {[%clk
0:01:53.2]} 22... a5 {[%clk 0:01:45.2]} 23. Qc5 {[%clk 0:01:46.4]} 23... Qf6
{[%clk 0:01:46.2]} 24. f4 {[%clk 0:01:29.8]} 24... Bxb2 {[%clk 0:01:46.9]} 25.
Rc2 {[%clk 0:01:31.1]} 25... Ba1 {[%clk 0:01:28.7]} 26. g4 {[%clk 0:01:26.9]}
26... g5 {[%clk 0:01:12.4]} 27. fxg5 {[%clk 0:01:04.7]} 27... Qe5 {[%clk
0:01:13.5]} 28. Bc3 {[%clk 0:00:54.5]} 28... Bxc3 {[%clk 0:01:14]} 29. Qxc3
{[%clk 0:00:56.4]} 29... Qxc3 {[%clk 0:01:15.2]} 30. Rxc3 {[%clk 0:00:58.3]}
30... b4 {[%clk 0:01:16.8]} 31. Rc7 {[%clk 0:00:57.2]} 31... Kg7 {[%clk
0:01:16.8]} 32. Bf5 {[%clk 0:00:50.7]} 32... Re8 {[%clk 0:00:57.1]} 33. g6
{[%clk 0:00:35.5]} 33... Kf6 {[%clk 0:00:40.2]} 34. Bxe6 {[%clk 0:00:03.9]}
34... Rxe6 {[%clk 0:00:39.7]} 35. gxf7 {[%clk 0:00:04.5]} 35... Kg7 {[%clk
0:00:41.2]} 36. g5 {[%clk 0:00:05.6]} 36... Rxe3 {[%clk 0:00:39.8]} 37. g6
{[%clk 0:00:06.6]} 37... a4 {[%clk 0:00:05.8]} 38. Rc8 {[%clk 0:00:07.3]} 38...
Re1+ {[%clk 0:00:06.9]} 39. Kc2 {[%clk 0:00:08.1]} 39... Re2+ {[%clk 0:00:06.7]}
40. Kd3 {[%clk 0:00:09.1]} 1-0

[Event "*** Titled Tuesday Blitz"]
[Site "Chess.com"]
[Date "2018.04.03"]
[Round "6"]
[White "Fandorine"]
[Black "ViktorMatviishen"]
[Result "1-0"]
[WhiteElo "2709"]
[BlackElo "2560"]
[TimeControl "180+2"]
[EndTime "14:19:34 PDT"]
[Termination "Fandorine won by resignation"]

1. e4 {[%clk 0:03:01.9]} 1... e5 {[%clk 0:03:00.6]} 2. Nf3 {[%clk 0:02:58]} 2...
Nc6 {[%clk 0:03:01.5]} 3. Nc3 {[%clk 0:02:59.3]} 3... Nf6 {[%clk 0:03:02.3]} 4.
g3 {[%clk 0:03:00.2]} 4... g6 {[%clk 0:03:00.6]} 5. Bg2 {[%clk 0:03:01]} 5...
Bg7 {[%clk 0:03:01.9]} 6. O-O {[%clk 0:03:02.5]} 6... O-O {[%clk 0:03:03.3]} 7.
d3 {[%clk 0:03:03.8]} 7... d6 {[%clk 0:03:00]} 8. h3 {[%clk 0:03:04.9]} 8... h6
{[%clk 0:03:00.1]} 9. Be3 {[%clk 0:03:06.2]} 9... Be6 {[%clk 0:02:47.3]} 10. d4
{[%clk 0:03:07]} 10... exd4 {[%clk 0:02:48.6]} 11. Nxd4 {[%clk 0:03:08.7]} 11...
Bd7 {[%clk 0:02:34.4]} 12. Qd2 {[%clk 0:02:45]} 12... Ne5 {[%clk 0:02:26.4]} 13.
Bxh6 {[%clk 0:02:40.8]} 13... Nc4 {[%clk 0:02:15.4]} 14. Qc1 {[%clk 0:02:41.6]}
14... Bh8 {[%clk 0:01:47.2]} 15. b3 {[%clk 0:02:19.6]} 15... Ne5 {[%clk
0:01:40.9]} 16. Bxf8 {[%clk 0:02:08.9]} 16... Qxf8 {[%clk 0:01:40.9]} 17. Rd1
{[%clk 0:02:10.2]} 17... Re8 {[%clk 0:01:38]} 18. Nd5 {[%clk 0:01:56.5]} 18...
c5 {[%clk 0:01:07.3]} 19. Ne2 {[%clk 0:01:42.1]} 19... Nxd5 {[%clk 0:01:01]} 20.
Rxd5 {[%clk 0:01:44]} 20... Qe7 {[%clk 0:00:37.3]} 21. c3 {[%clk 0:01:35.9]}
21... Bxh3 {[%clk 0:00:27.8]} 22. Rxe5 {[%clk 0:01:20.5]} 22... Qxe5 {[%clk
0:00:29.7]} 23. Bxh3 {[%clk 0:01:21.5]} 23... Qxe4 {[%clk 0:00:27]} 24. Bf1
{[%clk 0:01:21.3]} 24... Re5 {[%clk 0:00:24.1]} 25. Qf4 {[%clk 0:01:22]} 25...
Qd3 {[%clk 0:00:21.6]} 26. Rc1 {[%clk 0:00:56.8]} 26... Bg7 {[%clk 0:00:22.2]}
27. Nd4 {[%clk 0:00:49.1]} 27... Qe4 {[%clk 0:00:15.7]} 28. Qxe4 {[%clk
0:00:50.1]} 28... Rxe4 {[%clk 0:00:17.6]} 29. Nb5 {[%clk 0:00:46.6]} 29... d5
{[%clk 0:00:18.6]} 30. Bg2 {[%clk 0:00:46.8]} 30... Re5 {[%clk 0:00:19.7]} 31.
Nxa7 {[%clk 0:00:47.4]} 31... d4 {[%clk 0:00:17.4]} 32. Nb5 {[%clk 0:00:39.5]}
32... Re2 {[%clk 0:00:15.9]} 33. a4 {[%clk 0:00:32.5]} 33... Rb2 {[%clk
0:00:08.1]} 34. cxd4 {[%clk 0:00:28.1]} 34... cxd4 {[%clk 0:00:10]} 35. Bxb7
{[%clk 0:00:26.6]} 35... d3 {[%clk 0:00:10.2]} 36. Rd1 {[%clk 0:00:27.2]} 36...
Rxb3 {[%clk 0:00:10.3]} 37. Bd5 {[%clk 0:00:26.7]} 37... Rb4 {[%clk 0:00:10.5]}
38. Rxd3 {[%clk 0:00:27.2]} 38... Rxa4 {[%clk 0:00:11.9]} 39. Rf3 {[%clk
0:00:26.1]} 39... Rb4 {[%clk 0:00:11]} 40. Bxf7+ {[%clk 0:00:25.5]} 40... Kh7
{[%clk 0:00:11.9]} 41. Nd6 {[%clk 0:00:20.9]} 41... Kh6 {[%clk 0:00:13]} 42. Bb3
{[%clk 0:00:19.1]} 42... Bd4 {[%clk 0:00:13.9]} 43. Kg2 {[%clk 0:00:18.8]} 43...
Rb6 {[%clk 0:00:14.2]} 44. Nf7+ {[%clk 0:00:18.8]} 44... Kg7 {[%clk 0:00:15.4]}
45. Ng5 {[%clk 0:00:19.6]} 45... Bf6 {[%clk 0:00:14.4]} 46. Ne6+ {[%clk
0:00:19.3]} 46... Kh6 {[%clk 0:00:14]} 47. Rxf6 {[%clk 0:00:18.8]} 1-0

[Event "*** Titled Tuesday Blitz"]
[Site "Chess.com"]
[Date "2018.04.03"]
[Round "6"]
[White "Kangoroo3000"]
[Black "bascheyaro"]
[Result "1/2-1/2"]
[WhiteElo "2400"]
[BlackElo "2594"]
[TimeControl "180+2"]
[EndTime "14:19:34 PDT"]
[Termination "Game drawn by stalemate"]

1. d4 {[%clk 0:03:01.9]} 1... Nf6 {[%clk 0:03:00.9]} 2. c4 {[%clk 0:02:58.6]}
2... e6 {[%clk 0:03:00.4]} 3. Nf3 {[%clk 0:02:59.3]} 3... d5 {[%clk 0:03:01.6]}
4. g3 {[%clk 0:03:00.2]} 4... Bd6 {[%clk 0:03:02.3]} 5. Bg2 {[%clk 0:03:00.8]}
5... O-O {[%clk 0:03:03.5]} 6. O-O {[%clk 0:03:01.9]} 6... Ne4 {[%clk
0:03:03.9]} 7. Nfd2 {[%clk 0:02:58.6]} 7... f5 {[%clk 0:03:04.6]} 8. Nc3 {[%clk
0:02:58.5]} 8... c6 {[%clk 0:03:05.6]} 9. Ndxe4 {[%clk 0:02:54.3]} 9... fxe4
{[%clk 0:03:06.6]} 10. f3 {[%clk 0:02:55.8]} 10... exf3 {[%clk 0:03:07.7]} 11.
Bxf3 {[%clk 0:02:57.7]} 11... Nd7 {[%clk 0:03:08.5]} 12. e4 {[%clk 0:02:58.7]}
12... dxc4 {[%clk 0:03:07.7]} 13. e5 {[%clk 0:02:52.9]} 13... Be7 {[%clk
0:03:09]} 14. a4 {[%clk 0:02:53.1]} 14... c5 {[%clk 0:03:08.9]} 15. Be3 {[%clk
0:02:49.2]} 15... cxd4 {[%clk 0:03:09.5]} 16. Bxd4 {[%clk 0:02:51.1]} 16... Qa5
{[%clk 0:03:05.7]} 17. Qe2 {[%clk 0:02:44.9]} 17... Bc5 {[%clk 0:03:06.8]} 18.
Bxc5 {[%clk 0:02:40.7]} 18... Qxc5+ {[%clk 0:03:07.8]} 19. Kh1 {[%clk 0:02:42]}
19... Nxe5 {[%clk 0:03:08]} 20. Ne4 {[%clk 0:02:32.1]} 20... Qe7 {[%clk
0:03:04]} 21. Bg2 {[%clk 0:02:26.8]} 21... Bd7 {[%clk 0:03:05.2]} 22. Nd2 {[%clk
0:02:24.1]} 22... Qc5 {[%clk 0:03:05.7]} 23. Ne4 {[%clk 0:02:14.5]} 23... Qc7
{[%clk 0:03:06.2]} 24. Rac1 {[%clk 0:01:50.4]} 24... Bc6 {[%clk 0:03:05.4]} 25.
Qe3 {[%clk 0:01:43.4]} 25... Qe7 {[%clk 0:02:45]} 26. Nc5 {[%clk 0:01:38]} 26...
Rxf1+ {[%clk 0:02:26.8]} 27. Rxf1 {[%clk 0:01:36.9]} 27... Ng4 {[%clk
0:02:27.8]} 28. Qd4 {[%clk 0:01:23.2]} 28... Bxg2+ {[%clk 0:02:27.5]} 29. Kxg2
{[%clk 0:01:25.1]} 29... Nf6 {[%clk 0:02:25.3]} 30. Qxc4 {[%clk 0:01:17.9]}
30... Nd5 {[%clk 0:01:52.6]} 31. Re1 {[%clk 0:01:17.7]} 31... Rc8 {[%clk
0:01:53.4]} 32. Qxd5 {[%clk 0:01:17]} 32... Rxc5 {[%clk 0:01:54.3]} 33. Rxe6
{[%clk 0:00:56.5]} 33... Rxd5 {[%clk 0:01:55.1]} 34. Rxe7 {[%clk 0:00:58]} 34...
Rd2+ {[%clk 0:01:56.3]} 35. Kf3 {[%clk 0:00:59.1]} 35... Rxb2 {[%clk 0:01:57.5]}
36. h4 {[%clk 0:01:00]} 36... Rb4 {[%clk 0:01:56.9]} 37. Rc7 {[%clk 0:00:57.8]}
37... a5 {[%clk 0:01:54]} 38. Rd7 {[%clk 0:00:50.2]} 38... h6 {[%clk 0:01:53]}
39. Rc7 {[%clk 0:00:42.7]} 39... Kh7 {[%clk 0:01:53.7]} 40. h5 {[%clk
0:00:37.1]} 40... b6 {[%clk 0:01:54.5]} 41. Rb7 {[%clk 0:00:33.3]} 41... Kg8
{[%clk 0:01:54.4]} 42. g4 {[%clk 0:00:33.9]} 42... Kf8 {[%clk 0:01:55.3]} 43.
Kg3 {[%clk 0:00:33.2]} 43... Rxa4 {[%clk 0:01:55.3]} 44. Rxb6 {[%clk 0:00:33.8]}
44... Ra1 {[%clk 0:01:56.6]} 45. Rb7 {[%clk 0:00:33.9]} 45... a4 {[%clk
0:01:57.8]} 46. Ra7 {[%clk 0:00:35.1]} 46... a3 {[%clk 0:01:59.3]} 47. Kg2
{[%clk 0:00:36.4]} 47... Kg8 {[%clk 0:01:51.2]} 48. Kh2 {[%clk 0:00:36.6]} 48...
Kh7 {[%clk 0:01:50.1]} 49. Kg2 {[%clk 0:00:37.4]} 49... Kh8 {[%clk 0:01:51.5]}
50. Kh2 {[%clk 0:00:38.4]} 50... Kg8 {[%clk 0:01:52.6]} 51. Kg2 {[%clk
0:00:39.2]} 51... Kf8 {[%clk 0:01:53.7]} 52. Kh2 {[%clk 0:00:39.9]} 52... Ke8
{[%clk 0:01:54.5]} 53. Rxg7 {[%clk 0:00:37.7]} 53... Rb1 {[%clk 0:01:55.9]} 54.
Ra7 {[%clk 0:00:35.9]} 54... Rb3 {[%clk 0:01:56.8]} 55. Ra6 {[%clk 0:00:33.3]}
55... Rb2+ {[%clk 0:01:54.8]} 56. Kg3 {[%clk 0:00:34.2]} 56... a2 {[%clk
0:01:56.3]} 57. Kf4 {[%clk 0:00:35.4]} 57... Kf7 {[%clk 0:01:57.1]} 58. Ra7+
{[%clk 0:00:33.4]} 58... Ke6 {[%clk 0:01:58.3]} 59. Ra6+ {[%clk 0:00:34.7]}
59... Kd5 {[%clk 0:01:59.2]} 60. Kf5 {[%clk 0:00:34.7]} 60... Rg2 {[%clk
0:01:57.3]} 61. Kg6 {[%clk 0:00:30.5]} 61... Rxg4+ {[%clk 0:01:58.1]} 62. Kxh6
{[%clk 0:00:31.7]} 62... Rg2 {[%clk 0:01:59.5]} 63. Kh7 {[%clk 0:00:31.6]} 63...
Kc4 {[%clk 0:01:51.8]} 64. h6 {[%clk 0:00:30.8]} 64... Rh2 {[%clk 0:01:53.2]}
65. Kg7 {[%clk 0:00:31.4]} 65... Rg2+ {[%clk 0:01:54.4]} 66. Kh8 {[%clk
0:00:32.3]} 66... Kb3 {[%clk 0:01:54.3]} 67. h7 {[%clk 0:00:29.8]} 67... Rh2
{[%clk 0:01:53.7]} 68. Rxa2 {[%clk 0:00:29.3]} 68... Kxa2 {[%clk 0:01:53.9]} 69.
Kg7 {[%clk 0:00:30.8]} 69... Rg2+ {[%clk 0:01:55.4]} 70. Kh8 {[%clk 0:00:32.1]}
70... Rg1 {[%clk 0:01:52.9]} 1/2-1/2

[Event "*** Titled Tuesday Blitz"]
[Site "Chess.com"]
[Date "2018.04.03"]
[Round "6"]
[White "blitzcopter"]
[Black "nickmatta"]
[Result "0-1"]
[WhiteElo "2143"]
[BlackElo "2306"]
[TimeControl "180+2"]
[EndTime "14:19:35 PDT"]
[Termination "nickmatta won by resignation"]

1. e4 {[%clk 0:03:01.9]} 1... e5 {[%clk 0:02:59]} 2. Bc4 {[%clk 0:03:02.8]} 2...
Nf6 {[%clk 0:02:59.6]} 3. d3 {[%clk 0:03:03.2]} 3... c6 {[%clk 0:03:00.3]} 4.
Nf3 {[%clk 0:03:04.5]} 4... d5 {[%clk 0:03:01.1]} 5. Bb3 {[%clk 0:03:05.8]} 5...
Bb4+ {[%clk 0:03:01.8]} 6. Bd2 {[%clk 0:03:05.4]} 6... Bxd2+ {[%clk 0:02:57.8]}
7. Nbxd2 {[%clk 0:03:07.2]} 7... Nbd7 {[%clk 0:02:59]} 8. exd5 {[%clk
0:02:56.2]} 8... cxd5 {[%clk 0:02:58.3]} 9. O-O {[%clk 0:02:53.4]} 9... O-O
{[%clk 0:02:58.7]} 10. Re1 {[%clk 0:02:54.4]} 10... Re8 {[%clk 0:02:50.1]} 11.
Nf1 {[%clk 0:02:55.3]} 11... Qc7 {[%clk 0:02:37.8]} 12. a3 {[%clk 0:01:55.2]}
12... Nc5 {[%clk 0:02:07.4]} 13. Ba2 {[%clk 0:01:53.5]} 13... Bd7 {[%clk
0:01:49.6]} 14. Ne3 {[%clk 0:01:53.1]} 14... Bc6 {[%clk 0:01:42.5]} 15. d4
{[%clk 0:01:48.1]} 15... exd4 {[%clk 0:01:01.3]} 16. Nxd4 {[%clk 0:01:48.3]}
16... Rad8 {[%clk 0:00:53.4]} 17. Qf3 {[%clk 0:01:30.7]} 17... Ne6 {[%clk
0:00:46.2]} 18. Rad1 {[%clk 0:01:24.9]} 18... Qb6 {[%clk 0:00:31.8]} 19. Nxe6
{[%clk 0:01:11]} 19... fxe6 {[%clk 0:00:33]} 20. b4 {[%clk 0:01:10.3]} 20... d4
{[%clk 0:00:26.9]} 21. Qh3 {[%clk 0:00:42]} 21... dxe3 {[%clk 0:00:25.8]} 22.
Qxe3 {[%clk 0:00:39.8]} 22... Qxe3 {[%clk 0:00:18.7]} 23. fxe3 {[%clk
0:00:40.8]} 23... Kf7 {[%clk 0:00:18.2]} 24. Kf2 {[%clk 0:00:38.7]} 24... Rxd1
{[%clk 0:00:12.3]} 25. Rxd1 {[%clk 0:00:39.4]} 25... Ne4+ {[%clk 0:00:14.2]} 26.
Kg1 {[%clk 0:00:39]} 26... Nc3 {[%clk 0:00:15.4]} 27. Rf1+ {[%clk 0:00:40.3]}
27... Ke7 {[%clk 0:00:15.9]} 28. Bc4 {[%clk 0:00:40.3]} 28... Rf8 {[%clk
0:00:14.7]} 29. Re1 {[%clk 0:00:41.3]} 29... Bd5 {[%clk 0:00:14.8]} 30. Bd3
{[%clk 0:00:42]} 30... Be4 {[%clk 0:00:13.4]} 31. Bc4 {[%clk 0:00:41.4]} 31...
Rc8 {[%clk 0:00:12.5]} 32. Bb3 {[%clk 0:00:41.1]} 32... Nb5 {[%clk 0:00:05.2]}
33. a4 {[%clk 0:00:28.1]} 33... Na3 {[%clk 0:00:06.3]} 34. Ra1 {[%clk
0:00:19.3]} 34... Nxc2 {[%clk 0:00:06.1]} 35. Rc1 {[%clk 0:00:20.5]} 35... Rc3
{[%clk 0:00:06.9]} 36. Ba2 {[%clk 0:00:19.8]} 36... Rxe3 {[%clk 0:00:07.6]} 37.
Kf2 {[%clk 0:00:19.9]} 37... Rc3 {[%clk 0:00:07.2]} 38. g3 {[%clk 0:00:19.8]}
38... Bg6 {[%clk 0:00:03.1]} 39. Bb1 {[%clk 0:00:21]} 39... Rc4 {[%clk
0:00:03.4]} 40. b5 {[%clk 0:00:15]} 40... Na3 {[%clk 0:00:04.4]} 41. Bxg6 {[%clk
0:00:13.9]} 41... Rxc1 {[%clk 0:00:05.2]} 0-1

[Event "*** Titled Tuesday Blitz"]
[Site "Chess.com"]
[Date "2018.04.03"]
[Round "6"]
[White "Parhamov"]
[Black "Zaven_ChessMood"]
[Result "0-1"]
[WhiteElo "2811"]
[BlackElo "2817"]
[TimeControl "180+2"]
[EndTime "14:19:44 PDT"]
[Termination "Zaven_ChessMood won by resignation"]

1. Nf3 {[%clk 0:03:00]} 1... d5 {[%clk 0:03:00.3]} 2. g3 {[%clk 0:03:01.3]} 2...
c6 {[%clk 0:03:01.4]} 3. Bg2 {[%clk 0:03:02.2]} 3... Bg4 {[%clk 0:03:02.3]} 4.
O-O {[%clk 0:03:02.5]} 4... Nd7 {[%clk 0:03:03]} 5. d3 {[%clk 0:03:03.8]} 5...
Ngf6 {[%clk 0:03:03.6]} 6. h3 {[%clk 0:03:02]} 6... Bh5 {[%clk 0:03:03]} 7. Qe1
{[%clk 0:03:03.3]} 7... e5 {[%clk 0:03:02.5]} 8. g4 {[%clk 0:03:04.3]} 8... Bg6
{[%clk 0:03:02.3]} 9. Nh4 {[%clk 0:03:05.6]} 9... Nxg4 {[%clk 0:02:53.9]} 10. f4
{[%clk 0:02:58.6]} 10... Ngf6 {[%clk 0:02:49.2]} 11. Nc3 {[%clk 0:02:53.6]}
11... exf4 {[%clk 0:02:45.7]} 12. Bxf4 {[%clk 0:02:52.3]} 12... Bc5+ {[%clk
0:02:46.3]} 13. Kh1 {[%clk 0:02:52.6]} 13... O-O {[%clk 0:02:44.6]} 14. e4
{[%clk 0:02:52.9]} 14... Re8 {[%clk 0:02:42.8]} 15. Rd1 {[%clk 0:02:49.2]} 15...
Bd4 {[%clk 0:02:42.7]} 16. Ne2 {[%clk 0:02:48.4]} 16... Bb6 {[%clk 0:02:35]} 17.
Nxg6 {[%clk 0:02:41.5]} 17... hxg6 {[%clk 0:02:34.7]} 18. Ng3 {[%clk 0:02:42.6]}
18... Bc7 {[%clk 0:02:32.5]} 19. Qf2 {[%clk 0:02:39.3]} 19... Bxf4 {[%clk
0:02:31.8]} 20. Qxf4 {[%clk 0:02:40.1]} 20... Qb8 {[%clk 0:02:29.4]} 21. Qxb8
{[%clk 0:02:36.6]} 21... Raxb8 {[%clk 0:02:29.8]} 22. exd5 {[%clk 0:02:38]}
22... Nxd5 {[%clk 0:02:28.3]} 23. Bxd5 {[%clk 0:02:38.7]} 23... cxd5 {[%clk
0:02:29.9]} 24. Rd2 {[%clk 0:02:38.6]} 24... f6 {[%clk 0:02:27.8]} 25. Ne2
{[%clk 0:02:39.5]} 25... g5 {[%clk 0:02:25.3]} 26. Nd4 {[%clk 0:02:38.4]} 26...
Ne5 {[%clk 0:02:22.8]} 27. Kg2 {[%clk 0:02:37.7]} 27... Ng6 {[%clk 0:02:18.6]}
28. Nf5 {[%clk 0:02:36.5]} 28... Re5 {[%clk 0:02:17.1]} 29. Kg3 {[%clk
0:02:29.5]} 29... Rbe8 {[%clk 0:02:08.7]} 30. Kg4 {[%clk 0:02:21.3]} 30... R8e6
{[%clk 0:02:05.5]} 31. Rdf2 {[%clk 0:02:10.9]} 31... Nf4 {[%clk 0:01:55.1]} 32.
h4 {[%clk 0:02:01.5]} 32... g6 {[%clk 0:01:55.2]} 33. Nd4 {[%clk 0:01:43.7]}
33... f5+ {[%clk 0:01:51.6]} 34. Kg3 {[%clk 0:01:42.1]} 34... Re3+ {[%clk
0:01:51.9]} 35. Rf3 {[%clk 0:01:41.1]} 35... Nh5+ {[%clk 0:01:52]} 36. Kg2
{[%clk 0:01:34.2]} 36... g4 {[%clk 0:01:52.3]} 37. Rxe3 {[%clk 0:01:29]} 37...
Rxe3 {[%clk 0:01:53.1]} 38. Kf2 {[%clk 0:01:30.4]} 38... f4 {[%clk 0:01:50.9]}
39. Rg1 {[%clk 0:01:22.7]} 39... g3+ {[%clk 0:01:44.4]} 40. Kg2 {[%clk
0:01:23.8]} 40... Kf7 {[%clk 0:01:41.1]} 41. Rf1 {[%clk 0:01:19.4]} 41... Kf6
{[%clk 0:01:39.7]} 42. Rf3 {[%clk 0:01:20.2]} 42... Re1 {[%clk 0:01:36.5]} 43.
Rf1 {[%clk 0:01:20.6]} 43... Rxf1 {[%clk 0:01:34.5]} 44. Kxf1 {[%clk 0:01:21.7]}
44... g5 {[%clk 0:01:34.8]} 45. hxg5+ {[%clk 0:01:21.6]} 45... Kxg5 {[%clk
0:01:36.1]} 46. Nf3+ {[%clk 0:01:19.2]} 46... Kg4 {[%clk 0:01:35.7]} 47. Kg2
{[%clk 0:01:20.3]} 47... Ng7 {[%clk 0:01:34.2]} 48. Ne5+ {[%clk 0:01:21.6]}
48... Kf5 {[%clk 0:01:33.5]} 49. Nf7 {[%clk 0:01:15.7]} 49... Ne6 {[%clk
0:01:27.3]} 50. Nh6+ {[%clk 0:00:59.6]} 50... Kg6 {[%clk 0:01:25.3]} 51. Ng4
{[%clk 0:01:00.6]} 51... Ng5 {[%clk 0:01:18.2]} 52. b4 {[%clk 0:00:59.7]} 52...
d4 {[%clk 0:01:14.7]} 53. b5 {[%clk 0:00:59.6]} 53... Kf5 {[%clk 0:01:12.3]} 54.
Nh6+ {[%clk 0:01:00.6]} 54... Ke5 {[%clk 0:01:11.4]} 55. a3 {[%clk 0:01:01.1]}
55... Kd5 {[%clk 0:01:06.1]} 56. a4 {[%clk 0:01:01.6]} 56... Kc5 {[%clk
0:01:06.6]} 57. Nf5 {[%clk 0:01:02.7]} 57... Ne6 {[%clk 0:01:04.9]} 58. Ne7
{[%clk 0:00:48.8]} 58... Kb4 {[%clk 0:01:02.5]} 59. Nc8 {[%clk 0:00:50]} 59...
a6 {[%clk 0:00:57.9]} 60. bxa6 {[%clk 0:00:44.5]} 60... bxa6 {[%clk 0:00:58.1]}
61. Nb6 {[%clk 0:00:46.1]} 61... Kc3 {[%clk 0:00:54.7]} 0-1

[Event "*** Titled Tuesday Blitz"]
[Site "Chess.com"]
[Date "2018.04.03"]
[Round "6"]
[White "AndrewDGreen"]
[Black "julinha97"]
[Result "1/2-1/2"]
[WhiteElo "2102"]
[BlackElo "2218"]
[TimeControl "180+2"]
[EndTime "14:19:44 PDT"]
[Termination "Game drawn by agreement"]

1. d4 {[%clk 0:03:01.9]} 1... Nf6 {[%clk 0:03:00.7]} 2. Nf3 {[%clk 0:03:02.5]}
2... g6 {[%clk 0:03:01.7]} 3. Nc3 {[%clk 0:03:03.2]} 3... d5 {[%clk 0:03:00.6]}
4. Bf4 {[%clk 0:03:03.7]} 4... Bg7 {[%clk 0:03:01.7]} 5. e3 {[%clk 0:03:05.1]}
5... O-O {[%clk 0:03:02.6]} 6. Be2 {[%clk 0:03:05.7]} 6... c5 {[%clk 0:03:02.8]}
7. O-O {[%clk 0:03:06.4]} 7... Nc6 {[%clk 0:03:02.4]} 8. dxc5 {[%clk 0:03:06.7]}
8... Bf5 {[%clk 0:02:57.1]} 9. Nd4 {[%clk 0:03:05.3]} 9... Bd7 {[%clk
0:02:50.6]} 10. Nxc6 {[%clk 0:02:57.2]} 10... bxc6 {[%clk 0:02:48.3]} 11. Be5
{[%clk 0:02:58.6]} 11... Qa5 {[%clk 0:02:45.5]} 12. Qd4 {[%clk 0:02:50.1]} 12...
Ne8 {[%clk 0:02:32.8]} 13. Bxg7 {[%clk 0:02:46.5]} 13... Nxg7 {[%clk 0:02:33.3]}
14. b4 {[%clk 0:02:41.5]} 14... Qc7 {[%clk 0:02:34.3]} 15. a4 {[%clk 0:02:27]}
15... e5 {[%clk 0:02:33.3]} 16. Qd2 {[%clk 0:02:28.5]} 16... Be6 {[%clk
0:02:17]} 17. Rab1 {[%clk 0:02:17.4]} 17... Rfd8 {[%clk 0:02:12.4]} 18. Rfd1
{[%clk 0:02:12.2]} 18... a5 {[%clk 0:02:10.3]} 19. Na2 {[%clk 0:01:43.4]} 19...
axb4 {[%clk 0:02:08.8]} 20. Qxb4 {[%clk 0:01:40.1]} 20... Rdb8 {[%clk
0:02:07.5]} 21. Qa3 {[%clk 0:01:37.6]} 21... Bf5 {[%clk 0:02:03.2]} 22. Bd3
{[%clk 0:01:33.2]} 22... Bg4 {[%clk 0:01:51.6]} 23. f3 {[%clk 0:01:33]} 23...
Be6 {[%clk 0:01:46.5]} 24. Rb4 {[%clk 0:01:21.2]} 24... Qa5 {[%clk 0:01:34.7]}
25. Rdb1 {[%clk 0:01:17.1]} 25... Rxb4 {[%clk 0:01:33.9]} 26. Rxb4 {[%clk
0:01:13.9]} 26... Nf5 {[%clk 0:01:30.2]} 27. Kf2 {[%clk 0:00:56.4]} 27... Kg7
{[%clk 0:01:24.1]} 28. g4 {[%clk 0:00:50]} 28... Ne7 {[%clk 0:01:03.6]} 29. Qc3
{[%clk 0:00:49.9]} 29... f6 {[%clk 0:00:59.4]} 30. g5 {[%clk 0:00:46.6]} 30...
Nf5 {[%clk 0:00:49.7]} 31. gxf6+ {[%clk 0:00:27.7]} 31... Kxf6 {[%clk
0:00:49.4]} 32. Bxf5 {[%clk 0:00:20.2]} 32... Bxf5 {[%clk 0:00:44.8]} 33. f4
{[%clk 0:00:20.3]} 33... Qc7 {[%clk 0:00:45.1]} 34. Nc1 {[%clk 0:00:14.4]} 34...
Re8 {[%clk 0:00:31.1]} 35. Nd3 {[%clk 0:00:13.7]} 35... Bxd3 {[%clk 0:00:32.3]}
36. cxd3 {[%clk 0:00:15.6]} 36... Kf7 {[%clk 0:00:25.7]} 37. fxe5 {[%clk
0:00:15.7]} 37... Rxe5 {[%clk 0:00:26.6]} 38. Rf4+ {[%clk 0:00:16.2]} 38... Kg8
{[%clk 0:00:28.2]} 39. Qb4 {[%clk 0:00:14.5]} 39... Rf5 {[%clk 0:00:22.3]} 40.
Qb6 {[%clk 0:00:13.7]} 40... Rxf4+ {[%clk 0:00:21.6]} 41. exf4 {[%clk
0:00:14.6]} 41... Qxf4+ {[%clk 0:00:22.8]} 42. Ke2 {[%clk 0:00:15.9]} 42...
Qxh2+ {[%clk 0:00:23.5]} 43. Kd1 {[%clk 0:00:17.2]} 43... Qg1+ {[%clk
0:00:23.8]} 44. Kd2 {[%clk 0:00:18.4]} 44... Qf2+ {[%clk 0:00:24.7]} 45. Kc3
{[%clk 0:00:19.3]} 45... Qe1+ {[%clk 0:00:25.4]} 46. Kc2 {[%clk 0:00:19.7]}
46... Qe2+ {[%clk 0:00:24.5]} 47. Kc3 {[%clk 0:00:20.9]} 47... Qe5+ {[%clk
0:00:19.2]} 48. Kc2 {[%clk 0:00:19.8]} 48... Qe2+ {[%clk 0:00:19.3]} 49. Kc3
{[%clk 0:00:20.6]} 1/2-1/2